[Event "Titled Tuesday Blitz March 01 Late 2022"]
[White "Goryachkina, Aleksandra"]
[Black "Villegas, Pierre"]
[WhiteFideId "4147103"]
[BlackFideId "654183"]
[WhiteElo "2426"]
[BlackElo "2410"]
[Result "1-0"]
[Round "08"]
[TimeControl "180+1"]
[Date "2022.03.02"]
[WhiteClock "0:00:14"]
[BlackClock "0:00:01"]

1. e4 {[%clk 0:02:59]}  c6 {[%clk 0:02:59]} 2. d4 {[%clk 0:02:59]}  d5 {[%clk 0:02:59]} 3. Nd2 {[%clk 0:03:00]}  dxe4 {[%clk 0:02:54]} 4. Nxe4 {[%clk 0:03:00]}  Nf6 {[%clk 0:02:54]} 5. Nxf6+ {[%clk 0:03:00]}  exf6 {[%clk 0:02:55]} 6. c3 {[%clk 0:02:59]}  Bd6 {[%clk 0:02:55]} 7. Bd3 {[%clk 0:02:59]}  O-O {[%clk 0:02:55]} 8. Qc2 {[%clk 0:02:59]}  Re8+ {[%clk 0:02:54]} 9. Ne2 {[%clk 0:02:59]}  Kh8 {[%clk 0:02:52]} 10. O-O {[%clk 0:02:54]}  Nd7 {[%clk 0:02:51]} 11. Bd2 {[%clk 0:02:51]}  Nf8 {[%clk 0:02:51]} 12. Rfe1 {[%clk 0:02:48]}  Bg4 {[%clk 0:02:31]} 13. Ng3 {[%clk 0:02:41]}  g6 {[%clk 0:02:27]} 14. Rxe8 {[%clk 0:02:30]}  Qxe8 {[%clk 0:02:28]} 15. c4 {[%clk 0:02:30]}  Qd7 {[%clk 0:01:38]} 16. Bc3 {[%clk 0:02:28]}  Kg7 {[%clk 0:01:37]} 17. Ne4 {[%clk 0:02:22]}  Be7 {[%clk 0:01:31]} 18. Re1 {[%clk 0:02:08]}  Ne6 {[%clk 0:01:15]} 19. d5 {[%clk 0:02:00]}  cxd5 {[%clk 0:01:15]} 20. cxd5 {[%clk 0:02:00]}  Qxd5 {[%clk 0:01:12]} 21. Bc4 {[%clk 0:01:51]}  Qc6 {[%clk 0:00:50]} 22. Qb3 {[%clk 0:01:12]}  Bf5 {[%clk 0:00:31]} 23. Bd5 {[%clk 0:01:04]}  Qc7 {[%clk 0:00:24]} 24. Ng3 {[%clk 0:00:58]}  Nc5 {[%clk 0:00:23]} 25. Qc4 {[%clk 0:00:54]}  Be6 {[%clk 0:00:18]} 26. Bxe6 {[%clk 0:00:35]}  b5 {[%clk 0:00:18]} 27. Qg4 {[%clk 0:00:16]}  Nxe6 {[%clk 0:00:17]} 28. Nh5+ {[%clk 0:00:16]}  Kg8 {[%clk 0:00:14]} 29. Nxf6+ {[%clk 0:00:16]}  Bxf6 {[%clk 0:00:14]} 30. Bxf6 {[%clk 0:00:17]}  Re8 {[%clk 0:00:13]} 31. h3 {[%clk 0:00:16]}  h5 {[%clk 0:00:08]} 32. Qf3 {[%clk 0:00:15]}  Qd7 {[%clk 0:00:06]} 33. Bc3 {[%clk 0:00:14]}  f6 {[%clk 0:00:01]} 34. Qxf6 {[%clk 0:00:14]} 1-0


[Site "https://www.chess.com"]

[Event "Titled Tuesday Blitz March 01 Late 2022"]
[White "Gutenev, Alexander"]
[Black "Salinas Herrera, Pablo"]
[WhiteFideId "4195540"]
[BlackFideId "3407128"]
[WhiteElo "2403"]
[BlackElo "2541"]
[Result "1-0"]
[Round "08"]
[TimeControl "180+1"]
[Date "2022.03.01"]
[WhiteClock "0:00:09"]
[BlackClock "0:00:01"]

1. e4 {[%clk 0:02:55]}  c5 {[%clk 0:02:59]} 2. Nc3 {[%clk 0:02:54]}  e6 {[%clk 0:02:59]} 3. Nf3 {[%clk 0:02:53]}  a6 {[%clk 0:02:59]} 4. d4 {[%clk 0:02:54]}  cxd4 {[%clk 0:03:00]} 5. Nxd4 {[%clk 0:02:55]}  Qc7 {[%clk 0:02:59]} 6. Be2 {[%clk 0:02:55]}  Nf6 {[%clk 0:02:59]} 7. O-O {[%clk 0:02:56]}  d6 {[%clk 0:02:59]} 8. Be3 {[%clk 0:02:56]}  Be7 {[%clk 0:03:00]} 9. f4 {[%clk 0:02:56]}  O-O {[%clk 0:03:00]} 10. Kh1 {[%clk 0:02:56]}  Nbd7 {[%clk 0:03:01]} 11. a4 {[%clk 0:02:54]}  b6 {[%clk 0:03:01]} 12. Bf3 {[%clk 0:02:51]}  Bb7 {[%clk 0:03:01]} 13. Qe2 {[%clk 0:02:44]}  Rfe8 {[%clk 0:03:00]} 14. Rad1 {[%clk 0:02:33]}  Bf8 {[%clk 0:02:59]} 15. Nb3 {[%clk 0:02:25]}  Bc6 {[%clk 0:02:56]} 16. Nd4 {[%clk 0:02:19]}  Bb7 {[%clk 0:02:56]} 17. Nb3 {[%clk 0:02:19]}  Rac8 {[%clk 0:02:56]} 18. Rfe1 {[%clk 0:02:12]}  e5 {[%clk 0:02:49]} 19. f5 {[%clk 0:02:11]}  Qb8 {[%clk 0:02:41]} 20. g4 {[%clk 0:02:09]}  Rxc3 {[%clk 0:02:40]} 21. bxc3 {[%clk 0:02:07]}  Nxe4 {[%clk 0:02:41]} 22. Qg2 {[%clk 0:02:00]}  Qa8 {[%clk 0:02:38]} 23. Nd2 {[%clk 0:01:56]}  d5 {[%clk 0:01:55]} 24. Bxe4 {[%clk 0:01:49]}  dxe4 {[%clk 0:01:56]} 25. Nc4 {[%clk 0:01:48]}  Bc6 {[%clk 0:01:56]} 26. a5 {[%clk 0:01:45]}  bxa5 {[%clk 0:01:52]} 27. Nxa5 {[%clk 0:01:44]}  h6 {[%clk 0:01:20]} 28. h4 {[%clk 0:01:42]}  Nf6 {[%clk 0:01:12]} 29. g5 {[%clk 0:01:41]}  hxg5 {[%clk 0:01:13]} 30. hxg5 {[%clk 0:01:40]}  Nh5 {[%clk 0:01:13]} 31. g6 {[%clk 0:01:30]}  fxg6 {[%clk 0:01:08]} 32. fxg6 {[%clk 0:01:28]}  Re6 {[%clk 0:00:59]} 33. Qh3 {[%clk 0:01:26]}  Rxg6 {[%clk 0:00:51]} 34. Qxh5 {[%clk 0:01:22]}  Be8 {[%clk 0:00:51]} 35. Qf5 {[%clk 0:01:11]}  Rf6 {[%clk 0:00:45]} 36. Qg4 {[%clk 0:01:06]}  Rg6 {[%clk 0:00:37]} 37. Qh3 {[%clk 0:01:06]}  Bf7 {[%clk 0:00:21]} 38. Rg1 {[%clk 0:01:05]}  Rxg1+ {[%clk 0:00:16]} 39. Kxg1 {[%clk 0:01:01]}  Qb8 {[%clk 0:00:15]} 40. Nb3 {[%clk 0:00:54]}  Qb5 {[%clk 0:00:15]} 41. Qf1 {[%clk 0:00:45]}  Qc6 {[%clk 0:00:15]} 42. Qf5 {[%clk 0:00:39]}  Qxc3 {[%clk 0:00:14]} 43. Qxe4 {[%clk 0:00:37]}  Qc8 {[%clk 0:00:09]} 44. Kg2 {[%clk 0:00:33]}  Qe6 {[%clk 0:00:09]} 45. Nd2 {[%clk 0:00:29]}  Bg6 {[%clk 0:00:08]} 46. Qc4 {[%clk 0:00:29]}  Qxc4 {[%clk 0:00:06]} 47. Nxc4 {[%clk 0:00:29]}  Bxc2 {[%clk 0:00:07]} 48. Rc1 {[%clk 0:00:27]}  Be4+ {[%clk 0:00:07]} 49. Kf2 {[%clk 0:00:28]}  Be7 {[%clk 0:00:06]} 50. Ra1 {[%clk 0:00:26]}  Bd3 {[%clk 0:00:04]} 51. Nxe5 {[%clk 0:00:25]}  Bf6 {[%clk 0:00:05]} 52. Bd4 {[%clk 0:00:24]}  Bb5 {[%clk 0:00:05]} 53. Ke3 {[%clk 0:00:25]}  Bg5+ {[%clk 0:00:05]} 54. Ke4 {[%clk 0:00:24]}  Bf6 {[%clk 0:00:05]} 55. Kd5 {[%clk 0:00:23]}  Bg5 {[%clk 0:00:05]} 56. Nc4 {[%clk 0:00:21]}  Kh7 {[%clk 0:00:03]} 57. Nd6 {[%clk 0:00:20]}  Be2 {[%clk 0:00:03]} 58. Rg1 {[%clk 0:00:19]}  Bh6 {[%clk 0:00:03]} 59. Nf5 {[%clk 0:00:18]}  g6 {[%clk 0:00:03]} 60. Nxh6 {[%clk 0:00:17]}  Kxh6 {[%clk 0:00:04]} 61. Be3+ {[%clk 0:00:16]}  Kh7 {[%clk 0:00:04]} 62. Ke5 {[%clk 0:00:16]}  Kg7 {[%clk 0:00:04]} 63. Bd4 {[%clk 0:00:15]}  Kf7 {[%clk 0:00:04]} 64. Rg2 {[%clk 0:00:14]}  Bd3 {[%clk 0:00:04]} 65. Rf2+ {[%clk 0:00:14]}  Ke7 {[%clk 0:00:05]} 66. Rh2 {[%clk 0:00:11]}  Kd7 {[%clk 0:00:03]} 67. Kd5 {[%clk 0:00:10]}  g5 {[%clk 0:00:01]} 68. Rg2 {[%clk 0:00:09]} 1-0


[Site "https://www.chess.com"]

[Event "Titled Tuesday Blitz March 01 Late 2022"]
[White "Harvey, Marcus R"]
[Black "Kollars, Dmitrij"]
[WhiteFideId "400092"]
[BlackFideId "12909572"]
[WhiteElo "2485"]
[BlackElo "2584"]
[Result "0-1"]
[Round "08"]
[TimeControl "180+1"]
[Date "2022.03.01"]
[WhiteClock "0:00:02"]
[BlackClock "0:00:22"]

1. c4 {[%clk 0:03:00]}  e5 {[%clk 0:02:59]} 2. Nc3 {[%clk 0:03:01]}  Bb4 {[%clk 0:02:59]} 3. Nd5 {[%clk 0:03:01]}  a5 {[%clk 0:03:00]} 4. Nf3 {[%clk 0:02:59]}  d6 {[%clk 0:03:00]} 5. a3 {[%clk 0:02:52]}  Bc5 {[%clk 0:03:00]} 6. d4 {[%clk 0:02:53]}  exd4 {[%clk 0:02:59]} 7. Nxd4 {[%clk 0:02:53]}  Ne7 {[%clk 0:03:00]} 8. Nxe7 {[%clk 0:02:35]}  Qxe7 {[%clk 0:03:00]} 9. e3 {[%clk 0:02:34]}  O-O {[%clk 0:03:00]} 10. Be2 {[%clk 0:02:33]}  Bd7 {[%clk 0:02:53]} 11. O-O {[%clk 0:02:31]}  a4 {[%clk 0:02:47]} 12. Bf3 {[%clk 0:02:31]}  Nc6 {[%clk 0:02:45]} 13. Nb5 {[%clk 0:02:31]}  Be6 {[%clk 0:02:42]} 14. Bd5 {[%clk 0:02:28]}  Ne5 {[%clk 0:02:41]} 15. Nc3 {[%clk 0:02:12]}  Nxc4 {[%clk 0:02:20]} 16. Bxb7 {[%clk 0:02:07]}  Rab8 {[%clk 0:02:13]} 17. Bc6 {[%clk 0:02:06]}  Nxb2 {[%clk 0:02:01]} 18. Bxb2 {[%clk 0:02:06]}  Rxb2 {[%clk 0:02:02]} 19. Nxa4 {[%clk 0:02:07]}  Bb3 {[%clk 0:02:02]} 20. Qd3 {[%clk 0:01:44]}  Bxa4 {[%clk 0:01:56]} 21. Bxa4 {[%clk 0:01:45]}  Qf6 {[%clk 0:01:57]} 22. Bc2 {[%clk 0:01:41]}  Qg6 {[%clk 0:01:38]} 23. Qxg6 {[%clk 0:01:38]}  hxg6 {[%clk 0:01:39]} 24. Be4 {[%clk 0:01:35]}  Rd8 {[%clk 0:01:28]} 25. Bd5 {[%clk 0:01:32]}  Rd2 {[%clk 0:01:27]} 26. e4 {[%clk 0:01:21]}  Rb8 {[%clk 0:01:22]} 27. a4 {[%clk 0:01:16]}  Rbb2 {[%clk 0:01:22]} 28. a5 {[%clk 0:01:14]}  Kh7 {[%clk 0:01:01]} 29. a6 {[%clk 0:01:09]}  Bxf2+ {[%clk 0:01:00]} 30. Rxf2 {[%clk 0:01:01]}  Rxf2 {[%clk 0:01:01]} 31. e5 {[%clk 0:01:01]}  c6 {[%clk 0:00:47]} 32. a7 {[%clk 0:00:03]}  cxd5 {[%clk 0:00:47]} 33. a8=Q {[%clk 0:00:03]}  Rxg2+ {[%clk 0:00:48]} 34. Kh1 {[%clk 0:00:02]}  Rxh2+ {[%clk 0:00:48]} 35. Kg1 {[%clk 0:00:03]}  Rbg2+ {[%clk 0:00:49]} 36. Kf1 {[%clk 0:00:03]}  Rf2+ {[%clk 0:00:50]} 37. Kg1 {[%clk 0:00:04]}  Rhg2+ {[%clk 0:00:50]} 38. Kh1 {[%clk 0:00:04]}  Rh2+ {[%clk 0:00:37]} 39. Kg1 {[%clk 0:00:04]}  Rfg2+ {[%clk 0:00:37]} 40. Kf1 {[%clk 0:00:04]}  Rd2 {[%clk 0:00:37]} 41. Kg1 {[%clk 0:00:05]}  dxe5 {[%clk 0:00:36]} 42. Qc6 {[%clk 0:00:02]}  e4 {[%clk 0:00:32]} 43. Qc5 {[%clk 0:00:01]}  Rdg2+ {[%clk 0:00:22]} 44. Kf1 {[%clk 0:00:01]}  Rc2 {[%clk 0:00:23]} 45. Kg1 {[%clk 0:00:02]}  Rxc5 {[%clk 0:00:22]} 0-1


[Site "https://www.chess.com"]

[Event "Titled Tuesday Blitz March 01 Late 2022"]
[White "Ibadov, Dashgyn"]
[Black "Mirzoev, Azer"]
[WhiteFideId "24107514"]
[BlackFideId "13400304"]
[WhiteElo "2084"]
[BlackElo "2525"]
[Result "1-0"]
[Round "08"]
[TimeControl "180+1"]
[Date "2022.03.01"]
[WhiteClock "0:00:04"]
[BlackClock "0:00:06"]

1. e4 {[%clk 0:03:00]}  c5 {[%clk 0:02:59]} 2. Nf3 {[%clk 0:03:00]}  e6 {[%clk 0:02:59]} 3. d4 {[%clk 0:03:00]}  cxd4 {[%clk 0:03:00]} 4. Nxd4 {[%clk 0:03:01]}  a6 {[%clk 0:03:01]} 5. Nc3 {[%clk 0:03:01]}  b5 {[%clk 0:03:01]} 6. Bd3 {[%clk 0:03:01]}  Bb7 {[%clk 0:02:57]} 7. O-O {[%clk 0:03:01]}  Nc6 {[%clk 0:02:54]} 8. Nxc6 {[%clk 0:02:58]}  Bxc6 {[%clk 0:02:55]} 9. e5 {[%clk 0:02:54]}  Ne7 {[%clk 0:02:51]} 10. Qg4 {[%clk 0:02:46]}  Ng6 {[%clk 0:02:49]} 11. Qg3 {[%clk 0:02:41]}  Qc7 {[%clk 0:02:28]} 12. Re1 {[%clk 0:02:37]}  Be7 {[%clk 0:02:27]} 13. Bg5 {[%clk 0:02:34]}  Bxg5 {[%clk 0:02:22]} 14. Qxg5 {[%clk 0:02:35]}  O-O {[%clk 0:02:21]} 15. a3 {[%clk 0:02:19]}  f5 {[%clk 0:02:03]} 16. exf6 {[%clk 0:02:10]}  Rxf6 {[%clk 0:02:02]} 17. Ne4 {[%clk 0:02:09]}  Rf5 {[%clk 0:01:59]} 18. Qg3 {[%clk 0:02:04]}  Qxg3 {[%clk 0:01:58]} 19. hxg3 {[%clk 0:02:05]}  Ne5 {[%clk 0:01:47]} 20. Rad1 {[%clk 0:01:52]}  Nxd3 {[%clk 0:01:46]} 21. Rxd3 {[%clk 0:01:52]}  Rd5 {[%clk 0:01:44]} 22. Rxd5 {[%clk 0:01:41]}  Bxd5 {[%clk 0:01:45]} 23. c3 {[%clk 0:01:40]}  Kf7 {[%clk 0:01:38]} 24. f3 {[%clk 0:01:39]}  Ke7 {[%clk 0:01:37]} 25. Kf2 {[%clk 0:01:37]}  h6 {[%clk 0:01:37]} 26. g4 {[%clk 0:01:36]}  a5 {[%clk 0:01:35]} 27. Ke3 {[%clk 0:01:23]}  a4 {[%clk 0:01:33]} 28. Rd1 {[%clk 0:01:17]}  d6 {[%clk 0:01:27]} 29. Nf2 {[%clk 0:01:08]}  Rc8 {[%clk 0:01:23]} 30. Nd3 {[%clk 0:01:07]}  Bb7 {[%clk 0:01:21]} 31. Nf4 {[%clk 0:01:02]}  e5 {[%clk 0:01:15]} 32. Nh5 {[%clk 0:00:32]}  Rg8 {[%clk 0:01:05]} 33. Ng3 {[%clk 0:00:26]}  Ke6 {[%clk 0:00:42]} 34. Nf5 {[%clk 0:00:14]}  d5 {[%clk 0:00:41]} 35. Rh1 {[%clk 0:00:12]}  Bc6 {[%clk 0:00:35]} 36. Ng3 {[%clk 0:00:11]}  Rd8 {[%clk 0:00:29]} 37. Rh5 {[%clk 0:00:12]}  Be8 {[%clk 0:00:22]} 38. Rh1 {[%clk 0:00:12]}  Bg6 {[%clk 0:00:22]} 39. Rd1 {[%clk 0:00:09]}  Rc8 {[%clk 0:00:21]} 40. Nh5 {[%clk 0:00:07]}  Bxh5 {[%clk 0:00:20]} 41. gxh5 {[%clk 0:00:08]}  Rc4 {[%clk 0:00:19]} 42. g4 {[%clk 0:00:08]}  Rc8 {[%clk 0:00:15]} 43. f4 {[%clk 0:00:06]}  exf4+ {[%clk 0:00:13]} 44. Kxf4 {[%clk 0:00:07]}  Rf8+ {[%clk 0:00:13]} 45. Ke3 {[%clk 0:00:06]}  Ke5 {[%clk 0:00:14]} 46. Re1 {[%clk 0:00:04]}  Rf4 {[%clk 0:00:11]} 47. Kd3+ {[%clk 0:00:02]}  Kd6 {[%clk 0:00:11]} 48. Rg1 {[%clk 0:00:02]}  Rf3+ {[%clk 0:00:10]} 49. Kd4 {[%clk 0:00:02]}  Rf2 {[%clk 0:00:10]} 50. g5 {[%clk 0:00:03]}  Rf4+ {[%clk 0:00:10]} 51. Ke3 {[%clk 0:00:03]}  Re4+ {[%clk 0:00:08]} 52. Kd3 {[%clk 0:00:03]}  Kc5 {[%clk 0:00:05]} 53. gxh6 {[%clk 0:00:03]}  gxh6 {[%clk 0:00:06]} 54. Rg6 {[%clk 0:00:04]}  Rh4 {[%clk 0:00:06]} 55. Rxh6 {[%clk 0:00:04]}  Rh2 {[%clk 0:00:06]} 56. Rh8 {[%clk 0:00:04]}  Rxb2 {[%clk 0:00:06]} 57. h6 {[%clk 0:00:04]} 1-0


[Site "https://www.chess.com"]

[Event "Titled Tuesday Blitz March 01 Late 2022"]
[White "Iskusnyh, Sergei"]
[Black "Petrova, Irina"]
[WhiteFideId "4120027"]
[BlackFideId "14124122"]
[WhiteElo "2492"]
[BlackElo "1988"]
[Result "1-0"]
[Round "08"]
[TimeControl "180+1"]
[Date "2022.03.02"]
[WhiteClock "0:00:39"]
[BlackClock "0:01:11"]

1. d4 {[%clk 0:03:00]}  d6 {[%clk 0:02:59]} 2. Nf3 {[%clk 0:03:00]}  g6 {[%clk 0:02:58]} 3. c4 {[%clk 0:02:58]}  Bg7 {[%clk 0:02:58]} 4. Nc3 {[%clk 0:02:55]}  Nc6 {[%clk 0:02:58]} 5. g3 {[%clk 0:02:51]}  Nf6 {[%clk 0:02:56]} 6. Bg2 {[%clk 0:02:51]}  O-O {[%clk 0:02:56]} 7. O-O {[%clk 0:02:51]}  e5 {[%clk 0:02:56]} 8. dxe5 {[%clk 0:02:47]}  Nxe5 {[%clk 0:02:55]} 9. b3 {[%clk 0:02:47]}  Nxf3+ {[%clk 0:02:52]} 10. Bxf3 {[%clk 0:02:48]}  Bf5 {[%clk 0:02:45]} 11. Bb2 {[%clk 0:02:26]}  Ne4 {[%clk 0:02:42]} 12. Qc1 {[%clk 0:02:20]}  Nxc3 {[%clk 0:02:40]} 13. Bxc3 {[%clk 0:02:20]}  Re8 {[%clk 0:02:33]} 14. Bxg7 {[%clk 0:02:10]}  Kxg7 {[%clk 0:02:34]} 15. Qb2+ {[%clk 0:02:09]}  Qf6 {[%clk 0:02:34]} 16. Qxf6+ {[%clk 0:02:08]}  Kxf6 {[%clk 0:02:35]} 17. Bxb7 {[%clk 0:02:08]}  Rab8 {[%clk 0:02:33]} 18. Bf3 {[%clk 0:02:08]}  Be4 {[%clk 0:02:33]} 19. Bxe4 {[%clk 0:01:59]}  Rxe4 {[%clk 0:02:34]} 20. e3 {[%clk 0:01:59]}  a5 {[%clk 0:02:32]} 21. Rfd1 {[%clk 0:01:43]}  a4 {[%clk 0:02:30]} 22. Rd3 {[%clk 0:01:44]}  Rb4 {[%clk 0:02:15]} 23. Kf1 {[%clk 0:01:41]}  Re8 {[%clk 0:02:13]} 24. Ke2 {[%clk 0:01:40]}  Reb8 {[%clk 0:02:13]} 25. c5 {[%clk 0:01:20]}  axb3 {[%clk 0:02:06]} 26. cxd6 {[%clk 0:01:07]}  b2 {[%clk 0:02:05]} 27. Rb1 {[%clk 0:01:05]}  cxd6 {[%clk 0:02:04]} 28. Rxd6+ {[%clk 0:01:05]}  Ke5 {[%clk 0:02:03]} 29. Rd2 {[%clk 0:01:04]}  f5 {[%clk 0:02:00]} 30. h4 {[%clk 0:00:54]}  h6 {[%clk 0:01:59]} 31. a4 {[%clk 0:00:54]}  Rxa4 {[%clk 0:01:55]} 32. Rdxb2 {[%clk 0:00:52]}  Rxb2+ {[%clk 0:01:56]} 33. Rxb2 {[%clk 0:00:52]}  Ra6 {[%clk 0:01:55]} 34. Rb7 {[%clk 0:00:45]}  Kf6 {[%clk 0:01:51]} 35. Rh7 {[%clk 0:00:44]}  h5 {[%clk 0:01:49]} 36. Rb7 {[%clk 0:00:44]}  Rc6 {[%clk 0:01:46]} 37. Rd7 {[%clk 0:00:39]}  Re6 {[%clk 0:01:45]} 38. Kd3 {[%clk 0:00:38]}  Ra6 {[%clk 0:01:44]} 39. Rc7 {[%clk 0:00:38]}  Rd6+ {[%clk 0:01:43]} 40. Ke2 {[%clk 0:00:38]}  Ra6 {[%clk 0:01:42]} 41. Kf3 {[%clk 0:00:38]}  Re6 {[%clk 0:01:42]} 42. Rc4 {[%clk 0:00:38]}  Ra6 {[%clk 0:01:39]} 43. Kf4 {[%clk 0:00:38]}  Rb6 {[%clk 0:01:37]} 44. f3 {[%clk 0:00:38]}  Ra6 {[%clk 0:01:27]} 45. e4 {[%clk 0:00:37]}  fxe4 {[%clk 0:01:28]} 46. fxe4 {[%clk 0:00:38]}  Rb6 {[%clk 0:01:24]} 47. Rc5 {[%clk 0:00:37]}  Ra6 {[%clk 0:01:11]} 48. Rb5 {[%clk 0:00:37]}  Rc6 {[%clk 0:01:10]} 49. Rd5 {[%clk 0:00:37]}  Ra6 {[%clk 0:01:10]} 50. Rd6+ {[%clk 0:00:38]}  Rxd6 {[%clk 0:01:09]} 51. e5+ {[%clk 0:00:38]}  Ke6 {[%clk 0:01:10]} 52. exd6 {[%clk 0:00:39]}  Kxd6 {[%clk 0:01:11]} 53. Kg5 {[%clk 0:00:39]} 1-0


[Site "https://www.chess.com"]

[Event "Titled Tuesday Blitz March 01 Late 2022"]
[White "Janaszak, Dawid"]
[Black "Romero Ruscalleda, Josep"]
[WhiteFideId "1119206"]
[BlackFideId "2231859"]
[WhiteElo "2199"]
[BlackElo "2311"]
[Result "1-0"]
[Round "08"]
[TimeControl "180+1"]
[Date "2022.03.02"]
[WhiteClock "0:02:27"]
[BlackClock "0:01:37"]

1. e4 {[%clk 0:03:00]}  g6 {[%clk 0:03:00]} 2. Nc3 {[%clk 0:02:58]}  Bg7 {[%clk 0:03:01]} 3. h4 {[%clk 0:02:58]}  h5 {[%clk 0:02:59]} 4. Bc4 {[%clk 0:02:58]}  d6 {[%clk 0:02:56]} 5. d4 {[%clk 0:02:57]}  Nc6 {[%clk 0:02:55]} 6. Be3 {[%clk 0:02:52]}  e5 {[%clk 0:02:53]} 7. Nge2 {[%clk 0:02:52]}  Nf6 {[%clk 0:02:46]} 8. f3 {[%clk 0:02:51]}  a6 {[%clk 0:02:44]} 9. Qd2 {[%clk 0:02:50]}  b5 {[%clk 0:02:35]} 10. Bb3 {[%clk 0:02:49]}  Na5 {[%clk 0:02:32]} 11. O-O-O {[%clk 0:02:46]}  Nxb3+ {[%clk 0:02:30]} 12. axb3 {[%clk 0:02:47]}  exd4 {[%clk 0:02:25]} 13. Bxd4 {[%clk 0:02:40]}  Be6 {[%clk 0:02:22]} 14. Nf4 {[%clk 0:02:37]}  Qd7 {[%clk 0:02:19]} 15. Kb1 {[%clk 0:02:35]}  O-O {[%clk 0:02:16]} 16. g4 {[%clk 0:02:35]}  hxg4 {[%clk 0:02:02]} 17. h5 {[%clk 0:02:35]}  Nxh5 {[%clk 0:01:46]} 18. Nxh5 {[%clk 0:02:32]}  gxh5 {[%clk 0:01:44]} 19. Bxg7 {[%clk 0:02:27]}  Kxg7 {[%clk 0:01:37]} 20. Qg5+ {[%clk 0:02:27]} 1-0


[Site "https://www.chess.com"]

[Event "Titled Tuesday Blitz March 01 Late 2022"]
[White "Jaracz, Pawel"]
[Black "Paravyan, David"]
[WhiteFideId "1102222"]
[BlackFideId "4194985"]
[WhiteElo "2429"]
[BlackElo "2569"]
[Result "0-1"]
[Round "08"]
[TimeControl "180+1"]
[Date "2022.03.01"]
[WhiteClock "0:00:40"]
[BlackClock "0:00:46"]

1. e4 {[%clk 0:03:00]}  e5 {[%clk 0:02:57]} 2. Nf3 {[%clk 0:02:58]}  Nf6 {[%clk 0:02:58]} 3. Nxe5 {[%clk 0:02:57]}  d6 {[%clk 0:02:58]} 4. Nf3 {[%clk 0:02:57]}  Nxe4 {[%clk 0:02:59]} 5. Nc3 {[%clk 0:02:57]}  Nxc3 {[%clk 0:02:58]} 6. dxc3 {[%clk 0:02:58]}  Be7 {[%clk 0:02:58]} 7. Bf4 {[%clk 0:02:57]}  O-O {[%clk 0:02:58]} 8. Bd3 {[%clk 0:02:57]}  Bg4 {[%clk 0:02:54]} 9. h3 {[%clk 0:02:55]}  Bh5 {[%clk 0:02:53]} 10. g4 {[%clk 0:02:54]}  Bg6 {[%clk 0:02:53]} 11. Qd2 {[%clk 0:02:53]}  Qd7 {[%clk 0:02:32]} 12. Nd4 {[%clk 0:02:45]}  Bf6 {[%clk 0:02:24]} 13. Nf5 {[%clk 0:02:43]}  Re8+ {[%clk 0:02:23]} 14. Kf1 {[%clk 0:02:43]}  Na6 {[%clk 0:02:16]} 15. h4 {[%clk 0:02:06]}  Qc6 {[%clk 0:02:15]} 16. Rh3 {[%clk 0:02:05]}  Nc5 {[%clk 0:02:03]} 17. Be2 {[%clk 0:01:40]}  Ne4 {[%clk 0:02:02]} 18. Qd3 {[%clk 0:01:38]}  Qb6 {[%clk 0:01:57]} 19. Re3 {[%clk 0:01:36]}  Qxb2 {[%clk 0:01:20]} 20. Re1 {[%clk 0:01:35]}  Bxf5 {[%clk 0:01:13]} 21. gxf5 {[%clk 0:01:35]}  Nc5 {[%clk 0:01:11]} 22. Bf3 {[%clk 0:01:24]}  Rxe3 {[%clk 0:00:55]} 23. Qxe3 {[%clk 0:01:25]}  Rf8 {[%clk 0:00:55]} 24. Bd5 {[%clk 0:01:25]}  Qxc2 {[%clk 0:00:50]} 25. Kg2 {[%clk 0:00:40]}  Qxf5 {[%clk 0:00:47]} 26. Bf3 {[%clk 0:00:40]}  Nd3 {[%clk 0:00:46]} 0-1


[Site "https://www.chess.com"]

[Event "Titled Tuesday Blitz March 01 Late 2022"]
[White "Jobava, Baadur"]
[Black "Rorrer, Grayson"]
[WhiteFideId "13601520"]
[BlackFideId "30944996"]
[WhiteElo "2617"]
[BlackElo "2122"]
[Result "1-0"]
[Round "08"]
[TimeControl "180+1"]
[Date "2022.03.01"]
[WhiteClock "0:01:53"]
[BlackClock "0:00:07"]

1. d4 {[%clk 0:03:00]}  Nf6 {[%clk 0:02:59]} 2. Nc3 {[%clk 0:03:01]}  d5 {[%clk 0:02:58]} 3. Bf4 {[%clk 0:03:02]}  c5 {[%clk 0:02:59]} 4. e3 {[%clk 0:03:02]}  cxd4 {[%clk 0:02:59]} 5. exd4 {[%clk 0:03:02]}  a6 {[%clk 0:03:00]} 6. Bd3 {[%clk 0:03:03]}  Nc6 {[%clk 0:02:59]} 7. Nge2 {[%clk 0:03:03]}  Bg4 {[%clk 0:02:58]} 8. f3 {[%clk 0:03:03]}  Bh5 {[%clk 0:02:59]} 9. h4 {[%clk 0:03:03]}  Bg6 {[%clk 0:02:50]} 10. g4 {[%clk 0:03:04]}  e6 {[%clk 0:02:50]} 11. h5 {[%clk 0:03:04]}  Bxd3 {[%clk 0:02:50]} 12. Qxd3 {[%clk 0:03:05]}  Bd6 {[%clk 0:02:48]} 13. g5 {[%clk 0:03:00]}  Bxf4 {[%clk 0:02:36]} 14. Nxf4 {[%clk 0:03:01]}  Qd6 {[%clk 0:02:36]} 15. Qe3 {[%clk 0:02:58]}  Nd7 {[%clk 0:02:35]} 16. O-O-O {[%clk 0:02:50]}  O-O-O {[%clk 0:02:32]} 17. g6 {[%clk 0:02:50]}  Rdf8 {[%clk 0:02:06]} 18. Nce2 {[%clk 0:02:45]}  fxg6 {[%clk 0:01:29]} 19. hxg6 {[%clk 0:02:46]}  h6 {[%clk 0:01:29]} 20. Qxe6 {[%clk 0:02:35]}  Qxe6 {[%clk 0:01:28]} 21. Nxe6 {[%clk 0:02:36]}  Rxf3 {[%clk 0:01:28]} 22. N2f4 {[%clk 0:02:29]}  Nf8 {[%clk 0:01:17]} 23. Rhf1 {[%clk 0:02:24]}  Rxf1 {[%clk 0:01:08]} 24. Rxf1 {[%clk 0:02:25]}  Nxe6 {[%clk 0:01:08]} 25. Nxe6 {[%clk 0:02:25]}  h5 {[%clk 0:00:54]} 26. c3 {[%clk 0:02:23]}  h4 {[%clk 0:00:54]} 27. Nxg7 {[%clk 0:02:20]}  Rg8 {[%clk 0:00:50]} 28. Nf5 {[%clk 0:02:18]}  Rxg6 {[%clk 0:00:46]} 29. Nxh4 {[%clk 0:02:18]}  Rg4 {[%clk 0:00:38]} 30. Nf5 {[%clk 0:02:16]}  Rg2 {[%clk 0:00:36]} 31. Ne3 {[%clk 0:02:16]}  Rg5 {[%clk 0:00:34]} 32. Kd2 {[%clk 0:02:15]}  Kd7 {[%clk 0:00:34]} 33. Rf7+ {[%clk 0:02:14]}  Ne7 {[%clk 0:00:34]} 34. Kd3 {[%clk 0:02:14]}  Ke6 {[%clk 0:00:33]} 35. Rh7 {[%clk 0:02:14]}  Rg3 {[%clk 0:00:32]} 36. Ke2 {[%clk 0:02:09]}  Rg6 {[%clk 0:00:26]} 37. a4 {[%clk 0:02:08]}  Kd6 {[%clk 0:00:23]} 38. a5 {[%clk 0:02:08]}  Re6 {[%clk 0:00:24]} 39. Kd3 {[%clk 0:02:07]}  Rg6 {[%clk 0:00:20]} 40. b3 {[%clk 0:02:05]}  Rg3 {[%clk 0:00:16]} 41. Ke2 {[%clk 0:02:05]}  Rg6 {[%clk 0:00:16]} 42. Kd2 {[%clk 0:02:02]}  Re6 {[%clk 0:00:15]} 43. Kd3 {[%clk 0:02:02]}  Rg6 {[%clk 0:00:15]} 44. c4 {[%clk 0:02:03]}  Rg3 {[%clk 0:00:12]} 45. Ke2 {[%clk 0:02:03]}  dxc4 {[%clk 0:00:12]} 46. bxc4 {[%clk 0:02:02]}  Rg5 {[%clk 0:00:12]} 47. d5 {[%clk 0:01:55]}  Rg6 {[%clk 0:00:08]} 48. Kd3 {[%clk 0:01:53]}  Rf6 {[%clk 0:00:07]} 49. c5+ {[%clk 0:01:53]}  Kd7 {[%clk 0:00:07]} 50. d6 {[%clk 0:01:53]} 1-0


[Site "https://www.chess.com"]